Cogmind - Beta 16.1 @@@ ROGUE MODE // 2026.02.26 @ 11:05:40 Player: alexustasu Result: Destroyed by H-66 Slayer with Gauss Rifle Performance ------------- Evolutions (5) 2500 Regions Visited (10) 2000 Robots Destroyed (70) 350 Value Destroyed (2478) 2478 Prototype IDs (3) 60 Alien Tech Used (0) 0 Bonus (500) 500 TOTAL SCORE: 7888 Bonus ------- Entered DSFs 500 Cogmind --------- Core Integrity 0/1000 Matter 115/300 Energy 98/100 System Corruption 0% Temperature Cool (0) Movement Core (50) Location -5/Upper Caves Parts ------- > --- POWER (2) -------- (None) > --- PROPULSION (6) --- (None) > --- UTILITY (7) ------ Improved Targeting Computer Improved Targeting Computer > --- WEAPON (2) ------- (None) > --- INVENTORY (5) ---- Compact Wheel Small Storage Unit Ion Cannon Plasma Cannon Gauss Cannon Peak State ------------ > --- POWER ------------ Light Deuterium Engine Reinforced Deuterium Engine > --- PROPULSION ------- Improved VSS Leg > --- UTILITY ---------- Small Storage Unit Recoil Stabilizer Advanced ECM Suite Improved Medium Armor Plating Medium Reactive Plating Medium Reactive Plating > --- WEAPON ----------- High-powered Shock Rifle Improved Heavy Machine Gun > --- INVENTORY -------- Small Storage Unit Particle Gun Pulse Rifle Ion Cannon Plasma Cannon Flak Gun Heavy Rocket Launcher [Rating: 45] Favorites ----------- Power Ion Engine Engine Ion Engine Power Core Light Nuclear Core Propulsion Aluminum Leg Treads Light Treads Leg Aluminum Leg Wheel Wheel Hover Unit Improved Hover Unit Flight Unit Flight Unit Utility Small Storage Unit Device Microactuators Storage Small Storage Unit Processor Improved Targeting Computer Protection Improved Light Armor Plating Weapon Pulse Rifle Energy Gun Pulse Rifle Energy Cannon Ion Cannon Ballistic Gun Light Assault Rifle Launcher Heavy Rocket Launcher Impact Weapon Maul Slashing Weapon Mining Claw Build | -11 -10 -10 -9 -9 -8 -7 -6 -6 -5 -5 ------- Run | Yrd Mat Min Mat Min Mat Fac Fac DSF Fac Upp Slots Evolved 10 | . . . 2 . 2 2 2 . 2 . Power 1 | . . . . . . . 1 . . . Propulsion 4 | . . . 1 . 1 1 . . 1 . Utility 5 | . . . 1 . 1 1 1 . 1 . Weapon . | . . . . . . . . . . . Parts Attached 96 | 6 . 4 22 . 15 25 6 16 . 2 Power 13 | 1 . 1 1 . 3 4 1 2 . . Engine 7 | 1 . 1 1 . 1 2 1 . . . Core 6 | . . . . . 2 2 . 2 . . Reactor . | . . . . . . . . . . . Propulsion 27 | 2 . 1 9 . 7 5 . 2 . 1 Treads 3 | . . . 2 . . . . . . 1 Leg 15 | 2 . 1 . . 7 4 . 1 . . Wheel 2 | . . . 2 . . . . . . . Hover 2 | . . . . . . 1 . 1 . . Flight 5 | . . . 5 . . . . . . . Utility 32 | 1 . 1 4 . 4 11 2 9 . . Device 14 | . . 1 1 . 4 6 1 1 . . Storage 4 | 1 . . 1 . . 2 . . . . Processor 5 | . . . 2 . . 1 . 2 . . Hackware . | . . . . . . . . . . . Protection 9 | . . . . . . 2 1 6 . . Artifact . | . . . . . . . . . . . Weapon 24 | 2 . 1 8 . 1 5 3 3 . 1 Energy Gun 10 | 1 . 1 4 . 1 2 1 . . . Energy Cannon 1 | . . . . . . 1 . . . . Ballistic Gun 4 | 1 . . 1 . . . 2 . . . Ballistic Cannon . | . . . . . . . . . . . Launcher 5 | . . . 1 . . 1 . 3 . . Special Weapon . | . . . . . . . . . . . Impact Weapon 2 | . . . 1 . . 1 . . . . Slashing Weapon 2 | . . . 1 . . . . . . 1 Piercing Weapon . | . . . . . . . . . . . Special Melee Weapon . | . . . . . . . . . . . Unidentified Prototypes 3 | . . . . . . 2 1 . . . Corrupted Parts 1 | . . . . . 1 . . . . . System Corruption 6 | . . . . . 6 . . . . . Parts Lost 61 | . . . 9 . 5 23 . 20 . 4 Power 7 | . . . . . . 3 . 4 . . Propulsion 20 | . . . 5 . 4 8 . 2 . 1 Utility 21 | . . . 1 . 1 8 . 10 . 1 Weapon 13 | . . . 3 . . 4 . 4 . 2 Highest Loss Streak 14 | . . . 4 . 2 13 . 14 . 3 To Critical Strikes . | . . . . . . . . . . . Average Backups 6 | 1 5 7 7 8 7 6 5 6 4 5 Power . | . 1 1 1 1 1 . . . . . Propulsion . | . 1 1 . . . . . . . 1 Utility 1 | . . 1 2 3 2 1 . 1 1 1 Weapon 3 | . 2 3 3 4 4 3 5 5 3 3 Tool/Special . | . . . . . . . . . . . Unused Backups 18 | . . 2 1 . 4 5 . 2 . 4 Power 2 | . . 1 . . 1 . . . . . Propulsion 3 | . . 1 . . . 1 . . . 1 Utility 4 | . . . 1 . 2 1 . . . . Weapon 9 | . . . . . 1 3 . 2 . 3 Tool/Special . | . . . . . . . . . . . Average Slot Usage (%) 81 | . 85 99 94 100 95 84 64 51 17 14 Engine 8 | . 14 14 11 11 5 4 12 9 . . Core 1 | . . . . . 3 2 . . . . Treads 3 | . . . 4 22 7 . . . . . Leg 15 | . 28 28 14 . 23 24 . 2 . . Wheel 1 | . . . 4 11 1 . . . . . Device 9 | . . 13 6 . 9 15 11 6 5 2 Storage 9 | . 14 14 13 11 9 9 11 4 . . Processor 7 | . . . 12 22 18 6 . . 11 11 Protection 3 | . . . . . . 2 14 16 . . Energy Gun 8 | . 14 14 8 22 6 4 6 2 . . Ballistic Gun 4 | . 14 14 5 . . . 6 3 . . Impact Weapon 2 | . . . 2 . 5 5 . . . . Slashing Weapon 1 | . . . 3 . 5 . . . . . Peak Build Rating 45 | 6 6 8 16 16 25 42 38 45 10 10 Average Rating 21 | 4 6 7 11 16 20 31 33 30 10 8 On Entrance 13 | . 6 6 8 16 16 25 18 38 10 10 Avg Prop Armor Cover (%) 5 | . . . 5 4 8 4 . 6 . . Naked Turns 14 | . . . . . . . . 14 . . Heaviest Build 89 | 12 12 14 16 16 18 43 50 89 2 4 Greatest Support 85 | 20 20 20 40 40 45 85 3 15 3 28 Greatest Overweight (x) 22 | 3 . . 3 . 1 13 16 22 . 1 Average Overweight (x) . | . . . . . . . 15 5 . . Largest Inventory Capacity 8 | 8 8 8 8 8 8 8 8 8 5 5 Average Capacity 7 | 7 8 8 8 8 8 8 8 7 5 5 Most Carried 8 | 3 6 8 8 8 8 8 7 8 5 5 Average Carried 6 | 1 5 7 7 8 7 6 5 6 4 4 Final Capacity 8 | 8 8 8 8 8 8 8 8 5 5 5 Final Carried 8 | 3 6 8 8 8 8 6 7 4 5 5 Class Distribution -------------------- 63% | Mutant 28% | Scavenger-Mutant 8% | Gladiator Dominant Class ---------------- Mutant | -10/Materials Mutant | -10/Mines Mutant | -9/Materials Scavenger-Mutant | -9/Mines Scavenger-Mutant | -8/Materials Mutant | -7/Factory Mutant | -6/Factory Mutant | -6/DSF Mutant | -5/Factory Mutant | -5/Upper Caves Resources | -11 -10 -10 -9 -9 -8 -7 -6 -6 -5 -5 ----------- Run | Yrd Mat Min Mat Min Mat Fac Fac DSF Fac Upp Matter Collected 1499 | 204 66 42 241 30 228 321 . 252 . 115 Remotely 83 | . . 42 31 . 10 . . . . . Salvage Created 2375 | . 222 97 460 . 637 655 . 304 . . Parts 102 | . 15 4 31 . 16 19 . 17 . . Haulers Intercepted 1 | . . . . . . . . 1 . . Recyclers Shooed 2 | . . 1 . . 1 . . . . . Parts Field Recycled . | . . . . . . . . . . . Retrieved Matter . | . . . . . . . . . . . Parts Self-Destructed 10 | . . . . . . . . . . 10 Prevented 2 | . . . . . . . . . . 2 Parts Restored . | . . . . . . . . . . . Kills | -11 -10 -10 -9 -9 -8 -7 -6 -6 -5 -5 ------- Run | Yrd Mat Min Mat Min Mat Fac Fac DSF Fac Upp Combat Hostiles Destroyed 61 | . 8 2 18 . 14 12 . 7 . . Melee 11 | . . . 3 . 7 1 . . . . Guns 18 | . 8 . 6 . . 3 . 1 . . Cannons 2 | . . . . . . 2 . . . . AOE 18 | . . 2 7 . . 3 . 6 . . Classes Destroyed 14 | . 3 . 3 . 2 4 . 2 . . Worker 1 | . 1 . . . . . . . . . Builder 1 | . . . 1 . . . . . . . Hauler 1 | . . . . . . . . 1 . . Recycler 3 | . . . . . . 3 . . . . Watcher 3 | . . . . . 2 1 . . . . Swarmer 17 | . 6 . 7 . . 1 . 3 . . Grunt 24 | . 2 2 6 . 10 4 . . . . Brawler 2 | . . . 1 . . 1 . . . . Duelist 1 | . . . . . 1 . . . . . Sentry 9 | . . . 4 . 3 2 . . . . Specialist 3 | . . . . . . . . 3 . . Hunter 2 | . . . . . . 1 . 1 . . Programmer 2 | . . . . . . 2 . . . . Heavy 1 | . . . . . . 1 . . . . Best Kill Streak 9 | . 9 2 8 . 3 4 . 3 . . Combat Bots Only 8 | . 8 2 7 . 3 4 . 3 . . Max Kills in Single Turn 3 | . 1 2 3 . 1 2 . 3 . . Gunslinging . | . . . . . . . . . . . Exploded 3 | . . 2 3 . . 2 . 3 . . Melee 1 | . . . 1 . 1 1 . . . . Uniques/NPCs Destroyed . | . . . . . . . . . . . Combat | -11 -10 -10 -9 -9 -8 -7 -6 -6 -5 -5 -------- Run | Yrd Mat Min Mat Min Mat Fac Fac DSF Fac Upp Hostile Shots Fired 889 | . 30 2 116 2 72 269 . 267 . 131 Missed 307 | . 5 . 41 . 22 98 . 92 . 49 Hits 582 | . 25 2 75 2 50 171 . 175 . 82 Melee 4 | . . . . . . 4 . . . . Projectile 578 | . 25 2 75 2 50 167 . 175 . 82 Critical Strikes 16 | . 2 . 2 . 1 4 . 7 . . Actively Blocked 3 | . . . . . . . . 3 . . Part Disruptions 6 | . . . . . . 1 . 5 . . Actively Blocked 2 | . . . . . . . . 2 . . Damage Taken 9150 | . 262 79 832 25 757 2744 . 3124 . 1327 Core 2784 | . 77 65 152 15 102 583 . 775 . 1015 Absorbed by Shields . | . . . . . . . . . . . Redirected to Shielding 238 | . . . . . . . . 238 . . Ignored by Resistances 793 | . . . . . . . . 793 . . Regen/Repaired (Parts) 42 | . 15 . . . 27 . . . . . Core Remaining (%) 51 | 100 . 43 . 58 81 16 . 8 . . Volleys Fired 102 | . 18 2 23 . 6 33 . 20 . . Largest 2 | . 2 2 2 . 2 2 . 2 . . Hottest 135 | . 60 60 80 . 126 135 . 78 . . Shots Fired 190 | . 36 4 38 . 12 64 . 36 . . Gun 131 | . 36 4 30 . 12 30 . 19 . . Cannon 31 | . . . . . . 31 . . . . Launcher 28 | . . . 8 . . 3 . 17 . . Special . | . . . . . . . . . . . Kinetic 45 | . 18 2 12 . . . . 13 . . Thermal 94 | . 18 . 3 . 12 61 . . . . Explosive 28 | . . . 8 . . 3 . 17 . . Electromagnetic 23 | . . 2 15 . . . . 6 . . Robot Hit Streak 18 | . 4 5 9 . 18 12 . 8 . . Robot Miss Streak 5 | . 3 . 3 . 1 5 . 2 . . Penetration Max . | . . . . . . . . . . . Secondary Targets . | . . . . . . . . . . . Shots Hit Robots 217 | . 18 4 44 . 54 75 . 22 . . Core Hits 120 | . 12 4 23 . 13 39 . 28 . 1 Critical Kills 1 | . . . 1 . . . . . . . Critical Parts Destroyed 11 | . . . 2 . 4 5 . . . . Critical Strikes 15 | . . . 3 . 6 6 . . . . Burn 2 | . . . . . 2 . . . . . Smash 13 | . . . 3 . 4 6 . . . . Melee Attacks 115 | . . . 26 . 51 36 . . . 2 Impact 96 | . . . 16 . 44 36 . . . . Slashing 19 | . . . 10 . 7 . . . . 2 Piercing . | . . . . . . . . . . . Sneak Attacks 1 | . . . . . . 1 . . . . Combat Hostiles . | . . . . . . . . . . . Follow-up Attacks 17 | . . . 7 . 5 5 . . . . Damage Inflicted 7013 | . 199 195 1308 . 1785 2123 . 1402 . 1 Guns 1327 | . 187 38 222 . 172 495 . 213 . . Cannons 390 | . . . . . . 390 . . . . Explosions 2124 | . . 150 511 . . 274 . 1189 . . Melee 3141 | . . . 575 . 1602 964 . . . . Ramming 31 | . 12 7 . . 11 . . . . 1 Kinetic 291 | . 67 8 68 . . . . 148 . . Thermal 1350 | . 120 150 23 . 172 885 . . . . Explosive 1974 | . . . 511 . . 274 . 1189 . . Electromagnetic 226 | . . 30 131 . . . . 65 . . Impact 3004 | . . . 505 . 1535 964 . . . . Slashing 137 | . . . 70 . 67 . . . . . Piercing . | . . . . . . . . . . . Highest Corruption 15 | . . . . . 6 15 . 3 . . Average Corruption 7 | . . . . . 6 10 . 2 . . Corruption Purged . | . . . . . . . . . . . Corruption Blocked . | . . . . . . . . . . . Effects 51 | . . . . . 2 39 . 10 . . Message Errors 13 | . . . . . . 11 . 2 . . Matter Fused 13 | . . . . . . 10 . 3 . . Heat Flow Errors 9 | . . . . . 1 7 . 1 . . Energy Discharges 6 | . . . . . . 4 . 2 . . Parts Rejected 1 | . . . . . . 1 . . . . Data Loss (minor) 4 | . . . . . 1 2 . 1 . . Data Loss (major) 1 | . . . . . . 1 . . . . Misfires 2 | . . . . . . 2 . . . . Alerts 1 | . . . . . . . . 1 . . Weapon Failures 1 | . . . . . . 1 . . . . Overload Shots . | . . . . . . . . . . . Overflow Damage 606 | . . 4 112 . 215 209 . 66 . . Projectiles 5 | . . . . . . 5 . . . . Explosions 83 | . . 4 13 . . . . 66 . . Melee 518 | . . . 99 . 215 204 . . . . Knockbacks 9 | . . . . . 8 1 . . . . Impact 9 | . . . . . 8 1 . . . . Kinetic . | . . . . . . . . . . . Secondary . | . . . . . . . . . . . Self-Inflicted Damage 164 | . . 51 21 . . 87 . 5 . . Shots 7 | . . 1 2 . . 2 . 2 . . Rammed 1 | . . . . . . . . . . 1 Targets Rammed 8 | . 2 3 . . 2 . . . . 1 Kicked 7 | . 2 3 . . 2 . . . . . Crushed . | . . . . . . . . . . . Highest Temperature 396 | . 209 50 24 . 172 396 . 101 . . Average Temperature 91 | . 84 25 11 . 59 122 . 39 . . Received Heat Transfer 1393 | . 135 18 306 15 387 300 . 196 . 36 Effects 1 | . . . . . . 1 . . . . Energy Bleed 1 | . . . . . . 1 . . . . Siege Activations . | . . . . . . . . . . . Martial Activations . | . . . . . . . . . . . Shielding Activations . | . . . . . . . . . . . Robots Disrupted . | . . . . . . . . . . . Combat Hostiles . | . . . . . . . . . . . Robots Corrupted 12 | . . . 2 . 7 3 . . . . Combat Hostiles 11 | . . . 2 . 6 3 . . . . Parts Fried 9 | . . . 2 . 7 . . . . . Impact Corruptions 28 | . . . 5 . 13 10 . . . . Robots Melted 1 | . . . . . 1 . . . . . Combat Hostiles 1 | . . . . . 1 . . . . . Parts Melted 3 | . . . . . 3 . . . . . Heat Transferred 2317 | . 275 100 50 . 518 1374 . . . . Parts Sabotaged . | . . . . . . . . . . . Parts Stolen . | . . . . . . . . . . . Parts Stripped . | . . . . . . . . . . . Power Chain Reactions 1 | . . 1 . . . . . . . . Alert | -11 -10 -10 -9 -9 -8 -7 -6 -6 -5 -5 ------- Run | Yrd Mat Min Mat Min Mat Fac Fac DSF Fac Upp Maximum Alert Level 1 | . . . 1 . . . . 1 . . Low Security (%) 95 | 100 100 100 68 100 100 100 100 90 100 . Level 1 4 | . . . 31 . . . . 9 . . Level 2 . | . . . . . . . . . . . Level 3 . | . . . . . . . . . . . Level 4 . | . . . . . . . . . . . Level 5 . | . . . . . . . . . . . High Security . | . . . . . . . . . . . Max Security . | . . . . . . . . . . . Peak Influence 238 | . 175 60 234 69 102 172 16 238 58 . Initial 69 | . . 57 10 69 . 25 16 . 58 . Average 50 | . 54 11 140 10 44 52 . 87 45 . Influence Increases 2149 | . 255 60 545 15 408 474 . 302 . 90 Destroy 0b10 Robot/C 1220 | . 160 40 360 . 280 240 . 140 . . Destroy 0b10 Robot/NC 50 | . 5 . 5 . 10 20 . 10 . . Destroy Leader 306 | . 30 10 90 . 64 72 . 40 . . Successful Hack 19 | . . . 11 . 8 . . . . . Disable Machine 75 | . . . 15 . . 60 . . . . Destroy Structure 194 | . . 10 34 . 1 67 . 82 . . Lose Combat Pursuer 285 | . 60 . 30 15 45 15 . 30 . 90 Influence Decreases 2119 | . 108 179 394 194 350 497 35 190 84 88 Entered New Map 335 | . . 90 18 110 . 33 19 . 54 11 Time Decay 1275 | . 108 89 286 84 310 305 16 . 30 47 Lost Part 509 | . . . 90 . 40 159 . 190 . 30 Squads Dispatched 15 | . 2 . 2 . 2 4 1 3 1 . Investigation 3 | . 1 . . . 2 . . . . . Extermination 4 | . . . . . . 3 1 . . . Reinforcement 8 | . 1 . 2 . . 1 . 3 1 . Assault . | . . . . . . . . . . . Garrison . | . . . . . . . . . . . Intercept . | . . . . . . . . . . . Searches Triggered . | . . . . . . . . . . . Construction Impeded . | . . . . . . . . . . . Haulers Reinforced . | . . . . . . . . . . . Active Scanning Responses . | . . . . . . . . . . . Cargo Convoy Interrupts . | . . . . . . . . . . . Stealth | -11 -10 -10 -9 -9 -8 -7 -6 -6 -5 -5 --------- Run | Yrd Mat Min Mat Min Mat Fac Fac DSF Fac Upp Distress Signals 5 | . 1 . . . 3 1 . . . . Communications Jammed . | . . . . . . . . . . . Distress Signals . | . . . . . . . . . . . Times Spotted 113 | . 13 2 23 4 22 16 . 16 2 15 Peak Tracking Total 12 | . 11 2 7 3 3 5 . 5 2 12 Tactical Retreats 15 | . 2 . 2 1 3 1 . 3 . 3 ECM-based Alert Blocks 1 | . . . . . . . . 1 . . Traps | -11 -10 -10 -9 -9 -8 -7 -6 -6 -5 -5 ------- Run | Yrd Mat Min Mat Min Mat Fac Fac DSF Fac Upp Traps Triggered 4 | . . . . . 1 3 . . . . Indirectly . | . . . . . . . . . . . Trap Hack Attempts . | . . . . . . . . . . . Triggered . | . . . . . . . . . . . Disarmed . | . . . . . . . . . . . Reprogrammed . | . . . . . . . . . . . Reused . | . . . . . . . . . . . Traps Extracted . | . . . . . . . . . . . Installed . | . . . . . . . . . . . Triggered . | . . . . . . . . . . . Machines | -11 -10 -10 -9 -9 -8 -7 -6 -6 -5 -5 ---------- Run | Yrd Mat Min Mat Min Mat Fac Fac DSF Fac Upp Machines Disabled 5 | . . . 1 . . 4 . . . . Max in Single Turn 2 | . . . 1 . . 2 . . . . Machines Repaired . | . . . . . . . . . . . Machines Dismantled . | . . . . . . . . . . . Machines Sabotaged . | . . . . . . . . . . . Overloaded Fab Kills . | . . . . . . . . . . . Hacking | -11 -10 -10 -9 -9 -8 -7 -6 -6 -5 -5 --------- Run | Yrd Mat Min Mat Min Mat Fac Fac DSF Fac Upp Machines Accessed 16 | . 3 . 3 . 5 4 1 . . . Terminals 9 | . . . 2 . 3 3 1 . . . Fabricators . | . . . . . . . . . . . Repair Stations 2 | . 1 . . . 1 . . . . . Recycling Units 5 | . 2 . 1 . 1 1 . . . . Scanalyzers . | . . . . . . . . . . . Garrison Access . | . . . . . . . . . . . Total Hacks 27 | . 4 . 8 . 9 5 1 . . . Successful 14 | . 3 . 4 . 4 2 1 . . . Failed 13 | . 1 . 4 . 5 3 . . . . Catastrophic 3 | . . . . . 1 2 . . . . Database Lockouts . | . . . . . . . . . . . Manual 14 | . 1 . 5 . 6 2 . . . . Terminals 16 | . . . 5 . 7 3 1 . . . Fabricators . | . . . . . . . . . . . Repair Stations 2 | . 1 . . . 1 . . . . . Recycling Units 9 | . 3 . 3 . 1 2 . . . . Scanalyzers . | . . . . . . . . . . . Garrison Access . | . . . . . . . . . . . Terminal Hacks 6 | . . . 2 . 2 1 1 . . . Open DSF 2 | . . . . . . 1 1 . . . Branch Access Points 1 | . . . . . 1 . . . . . Zone Layout 3 | . . . 2 . 1 . . . . . Fabricator Hacks . | . . . . . . . . . . . Repair Station Hacks . | . . . . . . . . . . . Recycling Unit Hacks 6 | . 2 . 2 . 1 1 . . . . Report Inventory 5 | . 2 . 1 . 1 1 . . . . Retrieve Components 1 | . . . 1 . . . . . . . Scanalyzer . | . . . . . . . . . . . Garrison Access Hacks . | . . . . . . . . . . . Unauthorized Hacks 2 | . 1 . . . 1 . . . . . Terminals . | . . . . . . . . . . . Fabricators . | . . . . . . . . . . . Repair Stations 2 | . 1 . . . 1 . . . . . Patch 2 | . 1 . . . 1 . . . . . Recycling Units . | . . . . . . . . . . . Scanalyzers . | . . . . . . . . . . . Garrison Access . | . . . . . . . . . . . Data Cores Recovered . | . . . . . . . . . . . Used . | . . . . . . . . . . . Hacking Detections 8 | . . . 3 . 3 2 . . . . Full Trace Events . | . . . . . . . . . . . Feedback Events . | . . . . . . . . . . . Feedback Blocked . | . . . . . . . . . . . Robot Schematics Acquired . | . . . . . . . . . . . Robots Built . | . . . . . . . . . . . Authchips . | . . . . . . . . . . . Time . | . . . . . . . . . . . Total Robot Build Rating . | . . . . . . . . . . . Part Schematics Acquired . | . . . . . . . . . . . Parts Built . | . . . . . . . . . . . Authchips . | . . . . . . . . . . . Time . | . . . . . . . . . . . Total Part Build Rating . | . . . . . . . . . . . Part Studies Acquired . | . . . . . . . . . . . Parts Repaired . | . . . . . . . . . . . Time . | . . . . . . . . . . . Parts Recycled . | . . . . . . . . . . . Recycled Matter . | . . . . . . . . . . . Retrieved Matter . | . . . . . . . . . . . Retrieved Components 9 | . . . 9 . . . . . . . Parts Scanalyzed . | . . . . . . . . . . . Part Schematics Acquired . | . . . . . . . . . . . Parts Damaged . | . . . . . . . . . . . Bothacking | -11 -10 -10 -9 -9 -8 -7 -6 -6 -5 -5 ------------ Run | Yrd Mat Min Mat Min Mat Fac Fac DSF Fac Upp Used RIF Installer . | . . . . . . . . . . . Robots Hacked . | . . . . . . . . . . . Non-combat . | . . . . . . . . . . . Combat . | . . . . . . . . . . . Robot Hacks Applied . | . . . . . . . . . . . Relay Couplers Released . | . . . . . . . . . . . Fabnet Peak Effective % . | . . . . . . . . . . . Robots Rewired . | . . . . . . . . . . . Allies Hacked . | . . . . . . . . . . . Hacks Repelled . | . . . . . . . . . . . Allies | -11 -10 -10 -9 -9 -8 -7 -6 -6 -5 -5 -------- Run | Yrd Mat Min Mat Min Mat Fac Fac DSF Fac Upp Total Allies . | . . . . . . . . . . . Largest Group . | . . . . . . . . . . . Highest-Rated Group . | . . . . . . . . . . . Highest-Rated Ally . | . . . . . . . . . . . Total Orders . | . . . . . . . . . . . Ally Attacks . | . . . . . . . . . . . Total Damage . | . . . . . . . . . . . Kills . | . . . . . . . . . . . Allies Corrupted . | . . . . . . . . . . . Allies Melted . | . . . . . . . . . . . Intel | -11 -10 -10 -9 -9 -8 -7 -6 -6 -5 -5 ------- Run | Yrd Mat Min Mat Min Mat Fac Fac DSF Fac Upp Active Infowar (turns) 1075 | . . . 209 . . 26 598 242 . . Terrain 209 | . . . 209 . . . . . . . ECM 866 | . . . . . . 26 598 242 . . Robot Analysis Total . | . . . . . . . . . . . Derelict Logs Recovered . | . . . . . . . . . . . Drone Launches . | . . . . . . . . . . . Drone Recoveries . | . . . . . . . . . . . Exploration | -11 -10 -10 -9 -9 -8 -7 -6 -6 -5 -5 ------------- Run | Yrd Mat Min Mat Min Mat Fac Fac DSF Fac Upp Turns Passed 5999 | 56 418 658 632 529 780 1403 600 671 66 186 Spaces Moved 3206 | 33 302 525 354 309 371 649 74 143 122 324 Core 646 | 15 . . . . . 18 74 95 122 322 Treads 527 | . . . 66 309 150 . . . . 2 Legs 1884 | 18 302 525 148 . 221 631 . 39 . . Wheels 83 | . . . 83 . . . . . . . Hover 9 | . . . . . . . . 9 . . Flight 57 | . . . 57 . . . . . . . Fastest Speed 50 | 50 120 120 80 160 120 120 750 50 50 50 Average Speed 156 | 134 120 120 120 160 137 173 803 407 50 52 Slowest Speed 1150 | 200 120 120 280 160 190 700 850 1150 50 160 Overloaded Moves . | . . . . . . . . . . . Propulsion Burnouts . | . . . . . . . . . . . Robots Hopped . | . . . . . . . . . . . Potential Cave-ins 4 | . . . . . . . . 4 . . Cave-ins Triggered . | . . . . . . . . . . . Exploration Rate (%) 36 | 4 50 75 26 68 35 13 2 89 3 38 Regions Visited 10 Branch Regions 3 Pre-discovered Areas 1 | . . . . 1 . . . . . . Known Exits Taken 1 | . . . . . . . 1 . . . Unknown Exits Taken 8 | 1 1 1 1 1 1 1 . . 1 . Scrap Searched 4 | . . 2 . 1 . . . . . 1 Spaces Dug . | . . . . . . . . . . . Terrain Destroyed 290 | . . 11 56 . . 81 . 142 . . Melee . | . . . . . . . . . . . Projectile 1 | . . . . . . 1 . . . . AOE 289 | . . 11 56 . . 80 . 142 . . Terrain Rammed . | . . . . . . . . . . . Walls Destroyed . | . . . . . . . . . . . Machines Disabled . | . . . . . . . . . . . Actions | -11 -10 -10 -9 -9 -8 -7 -6 -6 -5 -5 --------- Run | Yrd Mat Min Mat Min Mat Fac Fac DSF Fac Upp Total 3857 | 41 325 550 480 344 542 837 84 192 126 336 Wait 209 | . 1 9 27 36 73 51 . 3 4 5 Move 3196 | 32 301 524 353 308 370 648 73 142 121 324 Hop . | . . . . . . . . . . . Pick Up 54 | 3 3 4 11 . 9 16 3 3 1 1 Fast Attach 51 | 6 . 1 7 . 7 13 1 14 . 2 Attach 27 | . . . 7 . 2 12 3 2 . 1 Detach 6 | . . . 1 . 2 2 . 1 . . Swap 58 | . . 3 21 . 14 14 4 2 . . Drop 51 | . . 4 12 . 13 17 . 5 . . Fire 102 | . 18 2 23 . 6 33 . 20 . . Melee 95 | . . . 18 . 44 31 . . . 2 Ram 1 | . . . . . . . . . . 1 Kick 7 | . 2 3 . . 2 . . . . . Crush . | . . . . . . . . . . . Escape Stasis . | . . . . . . . . . . . Rewire . | . . . . . . . . . . . Trap . | . . . . . . . . . . . Miscellaneous . | . . . . . . . . . . . Route ------- -11/Scrapyard -10/Materials (discovered 3 exits: *Mat / [*Min x2]) -10/Mines -9/Materials (discovered 3 exits: *Mat / [*Min] / [*Sto]) -9/Mines -8/Materials -7/Factory -6/Factory -6/DSF -5/Factory -5/Upper Caves History --------- Turn | Location | Event 32 | -11/Scrapyard | Discovered new exit (range 14) 57 | -11/Scrapyard | Entered Materials 68 | -10/Materials | Discovered new exit (range 14) 245 | -10/Materials | Discovered new exit (range 15) 305 | -10/Materials | Build established: Mutant 376 | -10/Materials | Destroyed 8 combat bots 378 | -10/Materials | Discovered new exit (range 6) 475 | -10/Materials | Entered Mines 1048 | -10/Mines | Core integrity fell below 50% 1083 | -10/Mines | Discovered new exit (range 5) 1133 | -10/Mines | Entered Materials 1133 | -9/Materials | Evolved 2 slots: Propulsion x1, Utility x1 1401 | -9/Materials | Destroyed 7 combat bots 1410 | -9/Materials | Lost 4 parts (2n2w) 1438 | -9/Materials | Discovered new exit (range 13) 1666 | -9/Materials | Discovered new exit (range 13) 1723 | -9/Materials | Discovered new exit (range 16) 1765 | -9/Materials | Entered Mines 1766 | -9/Mines | Learned location of Storage (-9) 1769 | -9/Mines | Met a Derelict bent on vengeance 2024 | -9/Mines | Build established: Scavenger-Mutant 2145 | -9/Mines | Assembled infested the area 2150 | -9/Mines | Assisted by a Guerilla fighting off Assembled 2265 | -9/Mines | Discovered new exit (range 9) 2294 | -9/Mines | Entered Materials 2294 | -8/Materials | Evolved 2 slots: Propulsion x1, Utility x1 3030 | -8/Materials | Discovered new exit (range 16) 3074 | -8/Materials | Entered Factory 3074 | -7/Factory | Evolved 2 slots: Propulsion x1, Utility x1 3257 | -7/Factory | Build established: Mutant 3430 | -7/Factory | Lost 3 parts (1p2u) 3684 | -7/Factory | Build established: Gladiator 3815 | -7/Factory | System corruption reached 10% 3934 | -7/Factory | Core integrity fell below 50% 3977 | -7/Factory | Lost 13 parts (2p5n3u3w) 4139 | -7/Factory | Discovered new exit (range 6) 4412 | -7/Factory | Build established: Scavenger-Mutant 4471 | -7/Factory | Lost 4 parts (2n1u1w) 4471 | -7/Factory | Core integrity fell below 20% 4477 | -7/Factory | Entered another Factory area 4477 | -6/Factory | Evolved 2 slots: Power x1, Utility x1 4717 | -6/Factory | Build established: Mutant 5077 | -6/Factory | Identified exit to DSF 5077 | -6/Factory | Entered DSF 5156 | -6/DSF | Additional patrols routed to DSF 5646 | -6/DSF | Lost 14 parts (2p2n6u4w) 5686 | -6/DSF | Core integrity fell below 50% 5737 | -6/DSF | Core integrity fell below 20% 5738 | -6/DSF | Discovered new exit (range 13) 5748 | -6/DSF | Entered Factory 5748 | -5/Factory | Evolved 2 slots: Propulsion x1, Utility x1 5766 | -5/Factory | Lost 4 parts (2p2u) 5791 | -5/Factory | Discovered new exit (range 10) 5814 | -5/Factory | Entered Upper Caves 5920 | -5/Upper Caves | Attracted the attention of an 0b10 checkpoint 5960 | -5/Upper Caves | Core integrity fell below 50% 5983 | -5/Upper Caves | Core integrity fell below 20% 6000 | -5/Upper Caves | Destroyed by H-66 Slayer with Gauss Rifle Last Messages --------------- Found 37 Matter. Acquired Gauss Cannon. S-27 Virus destroyed. VTOL Module fries itself beyond repair. Acquired 37 matter. Acquired Mak. Sword. Flak Gun destroyed. Lgt. Nuclear Core fries itself beyond repair. Mak. Sword destroyed. Slammed into S-27 Virus. Destabilizing: System interference. Imp. Targeting Computer temporarily disabled. 5J-PX4(S) destroyed. Acquired Med. Treads. Acquired 52 matter. Med. Treads destroyed. Acquired 26 matter. Penetrated by Slug. Slug penetrates Wall. Penetrated by Slug. Map ----- +----------------------------------------------------+ | ???????????????????? ### #?????? #??? | | ?????????????????????# ## #?????? #??? | | ??????????????????????# ######## ???? | | ??????????????????????# """ #???? | | ??????????????????????# """""" ????? | | ???????????????????????# """ """ #????? | | ???????????????????????# """ #????? | | ???????????????????????# #### """ """ ##???? | | ????????????????????#### #?## """""" ##??? | | ???????????????####?# ### """ ##?? | | ??????????????## #### ### #?? | | ??????????##### #?# ### #?? | | ??????????# #?## ## ##?? | | ??????????# """" #??## ######### ##??? | | ??????????# """" %##### ###?????## ### #???? | | ??????????# """ ##?????###?# #???? | | ??????????# ! ! Y ### ##????# #?### | | ??????????#### ######;s #????# #?# # | | ?????????????# #????##s #?????# #?# | | ?????????????## ##????##s ##?????# ### | | ?????????????## ####???# #### ##??????# | | ?????????????# #???# ####???###???????# ### | | ?????????????# ## #???# #????????????????# ### | | ?????????????# ## #???# #??????????????? # | | ????????????## ## #???# ########?????? # | | ????????????# ##??# @ !%! #### | | ????????????# #??# ! h ???# | | ????????????# #??############### ???# | | ????????????## ##????????????????## ?? | | ?????????????## #??????????????????### | | ??????????????# #????????????????????###### ## | | ??????????????## ##?????????????????????????###?? | | ???????????????####??????????????????????????????? | | ?????????????????????????????????????????????????? | | ?????????????????????????????????????????????????? | | ?????????????????????????????????????????????????? | | ?????????????????????????????????????????????????? | | ?????????????????????????????????????????????????? | | ?????????????????????????????????????????????????? | | ?????????????????????????????????????????????????? | | ?????????????????????????????????????????????????? | | ?????????????????????????????????????????????????? | | ?????????????????????????????????????????????????? | | ?????????????????????????????????????????????????? | | ?????????????????????????????????????????????????? | | ?????????????????????????????????????????????????? | | ?????????????????????????????????????????????????? | | ?????????????????????????????????????????????????? | | | | | +----------------------------------------------------+ Best States ------------- Heat Dissipation 56 Energy Generation 33 Energy Capacity 530 Matter Stores 450 Matter Capacity 450 Sight Range 16 Terrain Scan Range 14 Terrain Scan Density 10 ECM Strength 2 Armor Coverage 675 Resistance: KI 30 Weapon Shielding 66 Melee Speed Boost 40 Evasion (%) 63 Targeting Accuracy 12 Core Analysis 6 Recoil Reduction 4 Authchip Count 1 Item Schematics ----------------- None Robot Schematics ------------------ None Fabricated ------------ Nothing Repaired ---------- Nothing Studied --------- None Alien Tech Used ----------------- None Achievements -------------- A Problem For Future Me Heavy Suspicion Overwhelming That Tickles Tune-up Window Shopping Challenges ------------ None Game ------ Seed CloakingSalvageTracker Manual? 0 Play Time 01:25:48 Cumulative 31.5 hours Start 2026.02.26 @ 09:38:23 End 2026.02.26 @ 11:05:40 Sessions 1 Manual Loads 0 Difficulty Rogue Special Mode None Game No. 33 Rogue 33 Adventurer 0 Explorer 0 Win Type - Total 0 Types 0/0/0/0/0/0/0/0/0/0 Lore% 21 Gallery% 25 Achievement% 15 Wizard Run 0 Options --------- Layout 1 ASCII 0 Keyboard 0 Movement Mouse Keybinds 0 Fullscreen 2 Font 32/CogWide Map View 77x35 Zoom Use 40% Tactical HUD 0 Map Filters NONE Filters NONE Steam 1 RUN: b55420a7-d580-493b-9b16-14c10d99782a